[Event "Titled Tuesday Blitz December 13 Late 2022"]
[White "Kanakaris, Georgios"]
[Black "Barbot, Pierre"]
[WhiteFideId "4209460"]
[BlackFideId "663727"]
[WhiteElo "2291"]
[BlackElo "2439"]
[Result "1-0"]
[Round "02"]
[TimeControl "180+1"]
[Date "2022.12.14"]
[WhiteClock "0:00:17"]
[BlackClock "0:00:03"]

1. e4 {[%clk 0:03:00]}  c5 {[%clk 0:02:59]} 2. Nf3 {[%clk 0:03:01]}  Nc6 {[%clk 0:03:00]} 3. Bb5 {[%clk 0:03:00]}  g6 {[%clk 0:02:59]} 4. O-O {[%clk 0:02:57]}  Bg7 {[%clk 0:03:00]} 5. c3 {[%clk 0:02:57]}  Nf6 {[%clk 0:02:57]} 6. Qe2 {[%clk 0:02:56]}  O-O {[%clk 0:02:55]} 7. h3 {[%clk 0:02:54]}  Qc7 {[%clk 0:02:27]} 8. d4 {[%clk 0:02:38]}  d5 {[%clk 0:02:22]} 9. exd5 {[%clk 0:02:33]}  Nxd5 {[%clk 0:02:22]} 10. dxc5 {[%clk 0:02:34]}  a6 {[%clk 0:01:36]} 11. Bc4 {[%clk 0:02:32]}  Nf4 {[%clk 0:01:35]} 12. Bxf4 {[%clk 0:02:32]}  Qxf4 {[%clk 0:01:35]} 13. Nbd2 {[%clk 0:02:31]}  Bf5 {[%clk 0:01:18]} 14. Nb3 {[%clk 0:02:11]}  Rad8 {[%clk 0:01:10]} 15. Rad1 {[%clk 0:02:08]}  e5 {[%clk 0:00:56]} 16. Rxd8 {[%clk 0:01:32]}  Rxd8 {[%clk 0:00:53]} 17. g3 {[%clk 0:01:27]}  Qh6 {[%clk 0:00:52]} 18. g4 {[%clk 0:01:19]}  Bc8 {[%clk 0:00:23]} 19. Qe3 {[%clk 0:01:15]}  Qxh3 {[%clk 0:00:12]} 20. Bxf7+ {[%clk 0:01:10]}  Kh8 {[%clk 0:00:12]} 21. Nh2 {[%clk 0:01:10]}  Qh4 {[%clk 0:00:07]} 22. Qg3 {[%clk 0:01:08]}  Qf6 {[%clk 0:00:08]} 23. Bc4 {[%clk 0:01:05]}  e4 {[%clk 0:00:08]} 24. Be2 {[%clk 0:00:53]}  Qg5 {[%clk 0:00:08]} 25. Qe3 {[%clk 0:00:48]}  Qh4 {[%clk 0:00:07]} 26. Qg3 {[%clk 0:00:43]}  Qe7 {[%clk 0:00:07]} 27. Rd1 {[%clk 0:00:41]}  Be5 {[%clk 0:00:07]} 28. Rxd8+ {[%clk 0:00:40]}  Qxd8 {[%clk 0:00:07]} 29. Qe3 {[%clk 0:00:37]}  Qh4 {[%clk 0:00:06]} 30. Nf1 {[%clk 0:00:33]}  Bxg4 {[%clk 0:00:07]} 31. Qxe4 {[%clk 0:00:32]}  h5 {[%clk 0:00:03]} 32. f3 {[%clk 0:00:18]}  Bf5 {[%clk 0:00:03]} 33. Qxh4 {[%clk 0:00:17]} 1-0


[Site "https://www.chess.com"]

[Event "Titled Tuesday Blitz December 13 Late 2022"]
[White "Kaplan, Avi Harrison"]
[Black "De Souza, Cristiano Gomes"]
[WhiteFideId "30934559"]
[BlackFideId "2151758"]
[WhiteElo "1983"]
[BlackElo "2068"]
[Result "1-0"]
[Round "02"]
[TimeControl "180+1"]
[Date "2022.12.14"]
[WhiteClock "0:00:13"]
[BlackClock "0:00:45"]

1. Nf3 {[%clk 0:03:00]}  Nf6 {[%clk 0:02:59]} 2. c4 {[%clk 0:03:00]}  g6 {[%clk 0:02:58]} 3. b3 {[%clk 0:02:59]}  Bg7 {[%clk 0:02:59]} 4. Bb2 {[%clk 0:02:59]}  O-O {[%clk 0:02:59]} 5. g3 {[%clk 0:02:59]}  d6 {[%clk 0:02:57]} 6. Bg2 {[%clk 0:02:59]}  c5 {[%clk 0:02:56]} 7. O-O {[%clk 0:02:59]}  Nc6 {[%clk 0:02:56]} 8. d4 {[%clk 0:02:59]}  cxd4 {[%clk 0:02:56]} 9. Nxd4 {[%clk 0:02:59]}  Bd7 {[%clk 0:02:56]} 10. e4 {[%clk 0:02:51]}  Qc8 {[%clk 0:02:55]} 11. Nc3 {[%clk 0:02:44]}  Bh3 {[%clk 0:02:52]} 12. Nd5 {[%clk 0:02:41]}  Nxd5 {[%clk 0:02:51]} 13. exd5 {[%clk 0:02:40]}  Ne5 {[%clk 0:02:46]} 14. f4 {[%clk 0:02:23]}  Bxg2 {[%clk 0:02:46]} 15. Kxg2 {[%clk 0:02:24]}  Ng4 {[%clk 0:02:45]} 16. Qe2 {[%clk 0:02:21]}  Re8 {[%clk 0:02:41]} 17. h3 {[%clk 0:02:19]}  Nh6 {[%clk 0:02:39]} 18. f5 {[%clk 0:02:12]}  Be5 {[%clk 0:02:29]} 19. fxg6 {[%clk 0:02:09]}  hxg6 {[%clk 0:02:28]} 20. Rae1 {[%clk 0:01:46]}  a6 {[%clk 0:02:24]} 21. Ne6 {[%clk 0:01:32]}  Bxb2 {[%clk 0:02:06]} 22. Qxb2 {[%clk 0:01:32]}  fxe6 {[%clk 0:01:48]} 23. Rxe6 {[%clk 0:01:21]}  Kh7 {[%clk 0:01:39]} 24. Qc2 {[%clk 0:01:05]}  Rg8 {[%clk 0:01:31]} 25. h4 {[%clk 0:00:54]}  Rg7 {[%clk 0:01:17]} 26. h5 {[%clk 0:00:53]}  Qg8 {[%clk 0:01:02]} 27. hxg6+ {[%clk 0:00:41]}  Rxg6 {[%clk 0:01:01]} 28. Rxe7+ {[%clk 0:00:32]}  Kh8 {[%clk 0:01:00]} 29. Qc3+ {[%clk 0:00:29]}  Rg7 {[%clk 0:00:57]} 30. Rh1 {[%clk 0:00:28]}  Kh7 {[%clk 0:00:45]} 31. Qd3+ {[%clk 0:00:13]} 1-0


[Site "https://www.chess.com"]

[Event "Titled Tuesday Blitz December 13 Late 2022"]
[White "Kazakouski, Valery"]
[Black "Droin, Augustin"]
[WhiteFideId "13507443"]
[BlackFideId "45105987"]
[WhiteElo "2787"]
[BlackElo "2532"]
[Result "0-1"]
[Round "02"]
[TimeControl "180+1"]
[Date "2022.12.14"]
[WhiteClock "0:00:10"]
[BlackClock "0:00:11"]

1. Nf3 {[%clk 0:03:00]}  Nf6 {[%clk 0:02:59]} 2. c4 {[%clk 0:03:00]}  e6 {[%clk 0:02:59]} 3. g3 {[%clk 0:03:00]}  d5 {[%clk 0:02:56]} 4. b3 {[%clk 0:03:00]}  d4 {[%clk 0:02:56]} 5. e3 {[%clk 0:03:00]}  c5 {[%clk 0:02:57]} 6. exd4 {[%clk 0:03:01]}  cxd4 {[%clk 0:02:57]} 7. Bg2 {[%clk 0:03:02]}  Nc6 {[%clk 0:02:57]} 8. O-O {[%clk 0:03:03]}  Bc5 {[%clk 0:02:58]} 9. Re1 {[%clk 0:03:02]}  O-O {[%clk 0:02:57]} 10. d3 {[%clk 0:03:03]}  a5 {[%clk 0:02:57]} 11. Na3 {[%clk 0:03:02]}  Re8 {[%clk 0:02:21]} 12. Nb5 {[%clk 0:03:02]}  e5 {[%clk 0:02:08]} 13. Bg5 {[%clk 0:03:02]}  Rb8 {[%clk 0:01:57]} 14. Nd2 {[%clk 0:02:59]}  Be7 {[%clk 0:01:54]} 15. a3 {[%clk 0:02:57]}  Bf5 {[%clk 0:01:50]} 16. Qc2 {[%clk 0:02:56]}  Qd7 {[%clk 0:01:43]} 17. Rab1 {[%clk 0:02:49]}  h6 {[%clk 0:01:39]} 18. Bxf6 {[%clk 0:02:49]}  Bxf6 {[%clk 0:01:40]} 19. c5 {[%clk 0:02:46]}  Be7 {[%clk 0:01:37]} 20. Ne4 {[%clk 0:02:45]}  Bg6 {[%clk 0:01:31]} 21. Ned6 {[%clk 0:02:40]}  Red8 {[%clk 0:01:28]} 22. b4 {[%clk 0:02:31]}  axb4 {[%clk 0:01:19]} 23. axb4 {[%clk 0:02:32]}  b6 {[%clk 0:01:14]} 24. Qc4 {[%clk 0:02:27]}  Bf8 {[%clk 0:01:02]} 25. Bxc6 {[%clk 0:02:08]}  Qxc6 {[%clk 0:01:01]} 26. Rxe5 {[%clk 0:02:08]}  bxc5 {[%clk 0:01:01]} 27. Rxc5 {[%clk 0:01:57]}  Qf3 {[%clk 0:00:49]} 28. Ne4 {[%clk 0:00:46]}  Bxe4 {[%clk 0:00:40]} 29. dxe4 {[%clk 0:00:45]}  Bxc5 {[%clk 0:00:40]} 30. bxc5 {[%clk 0:00:46]}  d3 {[%clk 0:00:38]} 31. Qc3 {[%clk 0:00:37]}  Qxe4 {[%clk 0:00:30]} 32. Re1 {[%clk 0:00:38]}  d2 {[%clk 0:00:23]} 33. Rxe4 {[%clk 0:00:38]}  d1=Q+ {[%clk 0:00:23]} 34. Re1 {[%clk 0:00:38]}  Qd5 {[%clk 0:00:20]} 35. Nd6 {[%clk 0:00:32]}  Rb3 {[%clk 0:00:15]} 36. Qc2 {[%clk 0:00:28]}  Rf3 {[%clk 0:00:15]} 37. Qe2 {[%clk 0:00:19]}  Rf6 {[%clk 0:00:11]} 38. Qc2 {[%clk 0:00:15]}  Rfxd6 {[%clk 0:00:10]} 39. cxd6 {[%clk 0:00:15]}  Qxd6 {[%clk 0:00:11]} 40. h4 {[%clk 0:00:15]}  g6 {[%clk 0:00:11]} 41. h5 {[%clk 0:00:15]}  Kg7 {[%clk 0:00:12]} 42. hxg6 {[%clk 0:00:15]}  Qxg6 {[%clk 0:00:13]} 43. Qc3+ {[%clk 0:00:15]}  Qf6 {[%clk 0:00:13]} 44. Qe3 {[%clk 0:00:15]}  Rd5 {[%clk 0:00:13]} 45. Qe4 {[%clk 0:00:15]}  Rf5 {[%clk 0:00:13]} 46. Re2 {[%clk 0:00:15]}  Rg5 {[%clk 0:00:13]} 47. Kg2 {[%clk 0:00:14]}  h5 {[%clk 0:00:14]} 48. Re3 {[%clk 0:00:11]}  h4 {[%clk 0:00:13]} 49. Qxh4 {[%clk 0:00:10]}  Qc6+ {[%clk 0:00:12]} 50. Rf3 {[%clk 0:00:10]}  Rg6 {[%clk 0:00:11]} 51. Qd4+ {[%clk 0:00:09]}  Kg8 {[%clk 0:00:11]} 52. Qd8+ {[%clk 0:00:09]}  Kg7 {[%clk 0:00:12]} 53. Qd4+ {[%clk 0:00:10]}  Kg8 {[%clk 0:00:12]} 54. Qf4 {[%clk 0:00:10]}  Qe6 {[%clk 0:00:11]} 0-1


[Site "https://www.chess.com"]

[Event "Titled Tuesday Blitz December 13 Late 2022"]
[White "Ladan, Nicholas"]
[Black "Abasov, Nijat"]
[WhiteFideId "30918855"]
[BlackFideId "13402960"]
[WhiteElo "2167"]
[BlackElo "2546"]
[Result "0-1"]
[Round "02"]
[TimeControl "180+1"]
[Date "2022.12.14"]
[WhiteClock "0:01:24"]
[BlackClock "0:02:16"]

1. d4 {[%clk 0:02:59]}  Nf6 {[%clk 0:03:00]} 2. Bf4 {[%clk 0:02:55]}  d5 {[%clk 0:02:59]} 3. e3 {[%clk 0:02:55]}  c5 {[%clk 0:03:00]} 4. Nf3 {[%clk 0:02:55]}  Qb6 {[%clk 0:02:57]} 5. Nc3 {[%clk 0:02:54]}  a6 {[%clk 0:02:56]} 6. Na4 {[%clk 0:02:50]}  Qa5+ {[%clk 0:02:55]} 7. c3 {[%clk 0:02:50]}  c4 {[%clk 0:02:56]} 8. b4 {[%clk 0:02:30]}  Qd8 {[%clk 0:02:56]} 9. Nb2 {[%clk 0:02:28]}  e6 {[%clk 0:02:49]} 10. a4 {[%clk 0:02:29]}  Be7 {[%clk 0:02:42]} 11. Be2 {[%clk 0:02:28]}  Nh5 {[%clk 0:02:40]} 12. Be5 {[%clk 0:02:27]}  Nc6 {[%clk 0:02:40]} 13. O-O {[%clk 0:02:26]}  O-O {[%clk 0:02:36]} 14. Re1 {[%clk 0:02:18]}  Nf6 {[%clk 0:02:34]} 15. Qb1 {[%clk 0:02:15]}  Ne4 {[%clk 0:02:33]} 16. Qc2 {[%clk 0:02:12]}  f5 {[%clk 0:02:22]} 17. h3 {[%clk 0:01:51]}  Bd7 {[%clk 0:02:20]} 18. Bh2 {[%clk 0:01:50]}  Be8 {[%clk 0:02:21]} 19. Nd2 {[%clk 0:01:48]}  Nxc3 {[%clk 0:02:15]} 20. Qxc3 {[%clk 0:01:33]}  Bxb4 {[%clk 0:02:16]} 21. Qc2 {[%clk 0:01:29]}  c3 {[%clk 0:02:16]} 22. Nb3 {[%clk 0:01:24]}  cxb2 {[%clk 0:02:16]} 0-1


[Site "https://www.chess.com"]

[Event "Titled Tuesday Blitz December 13 Late 2022"]
[White "Levine, David"]
[Black "Karas, Marek"]
[WhiteFideId "2011611"]
[BlackFideId "14928558"]
[WhiteElo "2148"]
[BlackElo "2247"]
[Result "0-1"]
[Round "02"]
[TimeControl "180+1"]
[Date "2022.12.14"]
[WhiteClock "0:00:42"]
[BlackClock "0:01:14"]

1. d4 {[%clk 0:03:00]}  Nf6 {[%clk 0:02:59]} 2. c4 {[%clk 0:03:00]}  c5 {[%clk 0:02:58]} 3. d5 {[%clk 0:03:00]}  b5 {[%clk 0:02:58]} 4. cxb5 {[%clk 0:03:00]}  a6 {[%clk 0:02:57]} 5. f3 {[%clk 0:02:59]}  g6 {[%clk 0:02:51]} 6. e4 {[%clk 0:02:59]}  d6 {[%clk 0:02:51]} 7. Nc3 {[%clk 0:02:59]}  Bg7 {[%clk 0:02:50]} 8. a4 {[%clk 0:02:59]}  O-O {[%clk 0:02:49]} 9. bxa6 {[%clk 0:02:59]}  Bxa6 {[%clk 0:02:48]} 10. Bxa6 {[%clk 0:02:58]}  Nxa6 {[%clk 0:02:49]} 11. Nge2 {[%clk 0:02:59]}  Qb6 {[%clk 0:02:48]} 12. O-O {[%clk 0:02:56]}  Rfb8 {[%clk 0:02:46]} 13. Kh1 {[%clk 0:02:55]}  Ne8 {[%clk 0:02:44]} 14. a5 {[%clk 0:02:42]}  Qb7 {[%clk 0:02:32]} 15. Qe1 {[%clk 0:02:42]}  Nec7 {[%clk 0:02:25]} 16. Qh4 {[%clk 0:02:41]}  e6 {[%clk 0:02:20]} 17. dxe6 {[%clk 0:02:32]}  Nxe6 {[%clk 0:02:13]} 18. Nd5 {[%clk 0:02:27]}  Qb5 {[%clk 0:02:06]} 19. Rf2 {[%clk 0:02:03]}  Nb4 {[%clk 0:01:56]} 20. Nec3 {[%clk 0:02:00]}  Qe8 {[%clk 0:01:50]} 21. Bh6 {[%clk 0:01:57]}  Qd8 {[%clk 0:01:48]} 22. Qxd8+ {[%clk 0:01:50]}  Nxd8 {[%clk 0:01:43]} 23. Bxg7 {[%clk 0:01:45]}  Kxg7 {[%clk 0:01:42]} 24. Rd2 {[%clk 0:01:39]}  Nbc6 {[%clk 0:01:35]} 25. Kg1 {[%clk 0:01:35]}  Rxa5 {[%clk 0:01:32]} 26. Rxa5 {[%clk 0:01:31]}  Nxa5 {[%clk 0:01:32]} 27. Ne3 {[%clk 0:01:10]}  Nab7 {[%clk 0:01:26]} 28. Nb5 {[%clk 0:01:03]}  Ne6 {[%clk 0:01:20]} 29. Nxd6 {[%clk 0:01:03]}  Nxd6 {[%clk 0:01:21]} 30. Rxd6 {[%clk 0:01:02]}  Rxb2 {[%clk 0:01:21]} 31. Nd5 {[%clk 0:00:58]}  h5 {[%clk 0:01:18]} 32. h4 {[%clk 0:00:55]}  c4 {[%clk 0:01:17]} 33. Rc6 {[%clk 0:00:55]}  Rb1+ {[%clk 0:01:17]} 34. Kh2 {[%clk 0:00:54]}  Rc1 {[%clk 0:01:18]} 35. Kg3 {[%clk 0:00:50]}  Nd4 {[%clk 0:01:14]} 36. Kf4 {[%clk 0:00:42]}  Nxc6 {[%clk 0:01:14]} 0-1


[Site "https://www.chess.com"]

[Event "Titled Tuesday Blitz December 13 Late 2022"]
[White "Liu, Casper"]
[Black "Petrovic, Aleksa"]
[WhiteFideId "1454153"]
[BlackFideId "967629"]
[WhiteElo "2217"]
[BlackElo "2230"]
[Result "1/2-1/2"]
[Round "02"]
[TimeControl "180+1"]
[Date "2022.12.14"]
[WhiteClock "0:00:16"]
[BlackClock "0:00:12"]

1. g3 {[%clk 0:03:00]}  d5 {[%clk 0:02:59]} 2. Bg2 {[%clk 0:03:01]}  Nf6 {[%clk 0:02:59]} 3. b3 {[%clk 0:03:01]}  c6 {[%clk 0:02:57]} 4. Bb2 {[%clk 0:03:02]}  Bg4 {[%clk 0:02:56]} 5. Nf3 {[%clk 0:03:01]}  e6 {[%clk 0:02:55]} 6. O-O {[%clk 0:03:01]}  Be7 {[%clk 0:02:55]} 7. d3 {[%clk 0:03:01]}  O-O {[%clk 0:02:55]} 8. Nbd2 {[%clk 0:03:02]}  Nbd7 {[%clk 0:02:54]} 9. e4 {[%clk 0:02:59]}  a5 {[%clk 0:02:54]} 10. Qe2 {[%clk 0:02:58]}  a4 {[%clk 0:02:52]} 11. h3 {[%clk 0:02:55]}  Bh5 {[%clk 0:02:51]} 12. g4 {[%clk 0:02:49]}  Bg6 {[%clk 0:02:49]} 13. e5 {[%clk 0:02:50]}  Ne8 {[%clk 0:02:48]} 14. Rae1 {[%clk 0:02:33]}  axb3 {[%clk 0:02:46]} 15. axb3 {[%clk 0:02:33]}  Ra2 {[%clk 0:02:46]} 16. Rb1 {[%clk 0:02:33]}  Ba3 {[%clk 0:02:40]} 17. Bxa3 {[%clk 0:02:29]}  Rxa3 {[%clk 0:02:41]} 18. Ra1 {[%clk 0:02:24]}  Qa5 {[%clk 0:02:41]} 19. Rxa3 {[%clk 0:02:22]}  Qxa3 {[%clk 0:02:42]} 20. Nh4 {[%clk 0:02:22]}  Qb2 {[%clk 0:02:38]} 21. f4 {[%clk 0:02:22]}  h6 {[%clk 0:02:19]} 22. f5 {[%clk 0:02:13]}  Bh7 {[%clk 0:02:14]} 23. fxe6 {[%clk 0:02:11]}  fxe6 {[%clk 0:02:13]} 24. Rxf8+ {[%clk 0:02:11]}  Kxf8 {[%clk 0:02:05]} 25. Ndf3 {[%clk 0:02:09]}  g5 {[%clk 0:02:02]} 26. Qf2 {[%clk 0:02:04]}  Kg7 {[%clk 0:01:45]} 27. Nd4 {[%clk 0:02:04]}  gxh4 {[%clk 0:01:19]} 28. Nxe6+ {[%clk 0:02:02]}  Kg8 {[%clk 0:01:19]} 29. Qxh4 {[%clk 0:01:35]}  Qxe5 {[%clk 0:00:53]} 30. Qe7 {[%clk 0:01:35]}  Qe1+ {[%clk 0:00:25]} 31. Bf1 {[%clk 0:01:25]}  Qg3+ {[%clk 0:00:15]} 32. Kh1 {[%clk 0:01:24]}  Qd6 {[%clk 0:00:16]} 33. Qxe8+ {[%clk 0:01:23]}  Nf8 {[%clk 0:00:15]} 34. Nxf8 {[%clk 0:00:43]}  Qxf8 {[%clk 0:00:16]} 35. Qe6+ {[%clk 0:00:42]}  Kg7 {[%clk 0:00:14]} 36. Bg2 {[%clk 0:00:38]}  Bg6 {[%clk 0:00:12]} 37. Qe5+ {[%clk 0:00:29]}  Kh7 {[%clk 0:00:09]} 38. Kh2 {[%clk 0:00:28]}  Qf7 {[%clk 0:00:08]} 39. Kg3 {[%clk 0:00:28]}  Qd7 {[%clk 0:00:06]} 40. Bf3 {[%clk 0:00:27]}  Qf7 {[%clk 0:00:06]} 41. h4 {[%clk 0:00:27]}  Qg7 {[%clk 0:00:07]} 42. Qd6 {[%clk 0:00:25]}  h5 {[%clk 0:00:04]} 43. g5 {[%clk 0:00:22]}  Qf7 {[%clk 0:00:04]} 44. Qf4 {[%clk 0:00:20]}  Kg7 {[%clk 0:00:04]} 45. Qe5+ {[%clk 0:00:17]}  Kg8 {[%clk 0:00:04]} 46. Qb8+ {[%clk 0:00:16]}  Kg7 {[%clk 0:00:03]} 47. Qe5+ {[%clk 0:00:17]}  Kg8 {[%clk 0:00:04]} 48. Qe2 {[%clk 0:00:17]}  Kg7 {[%clk 0:00:04]} 49. c4 {[%clk 0:00:17]}  Qc7+ {[%clk 0:00:03]} 50. Kg2 {[%clk 0:00:15]}  dxc4 {[%clk 0:00:03]} 51. dxc4 {[%clk 0:00:15]}  Qf4 {[%clk 0:00:03]} 52. Qe7+ {[%clk 0:00:15]}  Kg8 {[%clk 0:00:03]} 53. Qe6+ {[%clk 0:00:14]}  Kg7 {[%clk 0:00:03]} 54. Qd7+ {[%clk 0:00:14]}  Bf7 {[%clk 0:00:02]} 55. Bxh5 {[%clk 0:00:12]}  Qe4+ {[%clk 0:00:02]} 56. Bf3 {[%clk 0:00:12]}  Qxh4 {[%clk 0:00:02]} 57. Qg4 {[%clk 0:00:12]}  Qxg4+ {[%clk 0:00:02]} 58. Bxg4 {[%clk 0:00:13]}  Kg6 {[%clk 0:00:02]} 59. Bc8 {[%clk 0:00:13]}  b6 {[%clk 0:00:02]} 60. Bb7 {[%clk 0:00:08]}  c5 {[%clk 0:00:03]} 61. Bd5 {[%clk 0:00:05]}  Be8 {[%clk 0:00:02]} 62. Kf3 {[%clk 0:00:04]}  Kxg5 {[%clk 0:00:02]} 63. Ke4 {[%clk 0:00:05]}  Kf6 {[%clk 0:00:02]} 64. Bb7 {[%clk 0:00:04]}  Ke6 {[%clk 0:00:02]} 65. Bc8+ {[%clk 0:00:05]}  Kd6 {[%clk 0:00:02]} 66. Bf5 {[%clk 0:00:06]}  Bf7 {[%clk 0:00:02]} 67. Bh7 {[%clk 0:00:05]}  Bh5 {[%clk 0:00:02]} 68. Bf5 {[%clk 0:00:05]}  Bd1 {[%clk 0:00:02]} 69. Kd3 {[%clk 0:00:05]}  Bxb3 {[%clk 0:00:02]} 70. Kc3 {[%clk 0:00:06]}  Bd1 {[%clk 0:00:02]} 71. Be4 {[%clk 0:00:06]}  Bg4 {[%clk 0:00:02]} 72. Ba8 {[%clk 0:00:07]}  Be6 {[%clk 0:00:02]} 73. Bh1 {[%clk 0:00:07]}  Ke5 {[%clk 0:00:03]} 74. Ba8 {[%clk 0:00:08]}  Kf4 {[%clk 0:00:03]} 75. Bh1 {[%clk 0:00:08]}  Ke3 {[%clk 0:00:03]} 76. Ba8 {[%clk 0:00:09]}  Bf5 {[%clk 0:00:04]} 77. Bc6 {[%clk 0:00:10]}  Be4 {[%clk 0:00:04]} 78. Bb5 {[%clk 0:00:10]}  Kf4 {[%clk 0:00:04]} 79. Ba6 {[%clk 0:00:10]}  Ke5 {[%clk 0:00:04]} 80. Bb5 {[%clk 0:00:11]}  Kd6 {[%clk 0:00:05]} 81. Ba6 {[%clk 0:00:11]}  Bc6 {[%clk 0:00:05]} 82. Kd3 {[%clk 0:00:10]}  Kc7 {[%clk 0:00:05]} 83. Kc3 {[%clk 0:00:09]}  Bb7 {[%clk 0:00:05]} 84. Bb5 {[%clk 0:00:09]}  Kb8 {[%clk 0:00:05]} 85. Bd7 {[%clk 0:00:09]}  Ka7 {[%clk 0:00:05]} 86. Bb5 {[%clk 0:00:09]}  Ba6 {[%clk 0:00:05]} 87. Bc6 {[%clk 0:00:09]}  Kb8 {[%clk 0:00:06]} 88. Bd7 {[%clk 0:00:09]}  Kc7 {[%clk 0:00:06]} 89. Ba4 {[%clk 0:00:10]}  Bb7 {[%clk 0:00:06]} 90. Bb5 {[%clk 0:00:10]}  Bc6 {[%clk 0:00:07]} 91. Ba6 {[%clk 0:00:10]}  Kb8 {[%clk 0:00:07]} 92. Kd3 {[%clk 0:00:11]}  Ka7 {[%clk 0:00:07]} 93. Bc8 {[%clk 0:00:11]}  Bb7 {[%clk 0:00:07]} 94. Bd7 {[%clk 0:00:10]}  Ka6 {[%clk 0:00:08]} 95. Bb5+ {[%clk 0:00:10]}  Ka5 {[%clk 0:00:08]} 96. Kc3 {[%clk 0:00:11]}  Ba6 {[%clk 0:00:08]} 97. Bc6 {[%clk 0:00:11]}  Bc8 {[%clk 0:00:08]} 98. Be8 {[%clk 0:00:11]}  Be6 {[%clk 0:00:07]} 99. Bc6 {[%clk 0:00:11]}  Bc8 {[%clk 0:00:07]} 100. Be8 {[%clk 0:00:11]}  Ba6 {[%clk 0:00:07]} 101. Bc6 {[%clk 0:00:11]}  b5 {[%clk 0:00:06]} 102. cxb5 {[%clk 0:00:11]}  Bxb5 {[%clk 0:00:06]} 103. Bxb5 {[%clk 0:00:11]}  Kxb5 {[%clk 0:00:07]} 104. Kb3 {[%clk 0:00:12]}  c4+ {[%clk 0:00:07]} 105. Kc3 {[%clk 0:00:13]}  Kc5 {[%clk 0:00:08]} 106. Kc2 {[%clk 0:00:14]}  Kb4 {[%clk 0:00:09]} 107. Kb2 {[%clk 0:00:14]}  c3+ {[%clk 0:00:09]} 108. Kc2 {[%clk 0:00:15]}  Kc4 {[%clk 0:00:10]} 109. Kc1 {[%clk 0:00:15]}  Kb3 {[%clk 0:00:10]} 110. Kb1 {[%clk 0:00:15]}  c2+ {[%clk 0:00:11]} 111. Kc1 {[%clk 0:00:16]}  Kc3 {[%clk 0:00:12]} 1/2-1/2


[Site "https://www.chess.com"]

[Event "Titled Tuesday Blitz December 13 Late 2022"]
[White "Liu, Kelsey"]
[Black "Cruz, William Ferreira Da"]
[WhiteFideId "30944481"]
[BlackFideId "2118050"]
[WhiteElo "2261"]
[BlackElo "2223"]
[Result "1-0"]
[Round "02"]
[TimeControl "180+1"]
[Date "2022.12.14"]
[WhiteClock "0:00:46"]
[BlackClock "0:00:18"]

1. e4 {[%clk 0:02:54]}  e6 {[%clk 0:02:59]} 2. d4 {[%clk 0:02:54]}  d5 {[%clk 0:03:00]} 3. Nc3 {[%clk 0:02:55]}  Nf6 {[%clk 0:02:59]} 4. Bg5 {[%clk 0:02:53]}  dxe4 {[%clk 0:02:59]} 5. Nxe4 {[%clk 0:02:50]}  Be7 {[%clk 0:02:58]} 6. Bxf6 {[%clk 0:02:50]}  gxf6 {[%clk 0:02:59]} 7. Nf3 {[%clk 0:02:22]}  f5 {[%clk 0:02:59]} 8. Ng3 {[%clk 0:02:10]}  a6 {[%clk 0:02:55]} 9. Bd3 {[%clk 0:02:05]}  b5 {[%clk 0:02:51]} 10. c3 {[%clk 0:02:05]}  Bb7 {[%clk 0:02:50]} 11. Qe2 {[%clk 0:02:02]}  Nd7 {[%clk 0:02:38]} 12. Rg1 {[%clk 0:01:50]}  Nf6 {[%clk 0:02:35]} 13. Ne5 {[%clk 0:01:47]}  c5 {[%clk 0:02:17]} 14. O-O-O {[%clk 0:01:27]}  cxd4 {[%clk 0:02:16]} 15. cxd4 {[%clk 0:01:28]}  h5 {[%clk 0:01:41]} 16. h4 {[%clk 0:01:21]}  Ng4 {[%clk 0:01:37]} 17. Kb1 {[%clk 0:01:16]}  Nxe5 {[%clk 0:01:28]} 18. dxe5 {[%clk 0:01:15]}  Qb6 {[%clk 0:01:27]} 19. Nxh5 {[%clk 0:01:06]}  O-O-O {[%clk 0:01:25]} 20. g3 {[%clk 0:00:51]}  Rxd3 {[%clk 0:01:18]} 21. Rxd3 {[%clk 0:00:50]}  Be4 {[%clk 0:01:18]} 22. Nf4 {[%clk 0:00:50]}  Rd8 {[%clk 0:01:05]} 23. Rd1 {[%clk 0:00:50]}  Rxd3 {[%clk 0:00:47]} 24. Nxd3 {[%clk 0:00:48]}  Bc5 {[%clk 0:00:37]} 25. f3 {[%clk 0:00:48]}  Bxd3+ {[%clk 0:00:27]} 26. Qxd3 {[%clk 0:00:49]}  a5 {[%clk 0:00:19]} 27. Qd7+ {[%clk 0:00:49]}  Kb8 {[%clk 0:00:19]} 28. Qd8+ {[%clk 0:00:50]}  Kb7 {[%clk 0:00:19]} 29. Rd7+ {[%clk 0:00:47]}  Kc6 {[%clk 0:00:18]} 30. Qc8+ {[%clk 0:00:46]} 1-0


[Site "https://www.chess.com"]